Workbook

Sheet паспорт
A1: ПАТ "УКРТРАНСГАЗ" | G1: ПАСПОРТ ФІЗИКО-ХІМІЧНИХ ПОКАЗНИКІВ ПРИРОДНОГО ГАЗУ № 634
A2: Філія "УМГ "ХАРКІВТРАНСГАЗ" | G2: переданого Сєвєродонецьким ЛВУМГ та прийнятого ПрАТ ЛИНІК, ЛВДС "Лисичанськ" філії ПДМН ПАТ "Укртранснафта"
A3: Сєвєродонецьке ЛВУМГ | G3: Маршрут № 634
A4: Вимірювальна хіміко-аналітична лабораторія
A5: Свідоцтво № РЬ089/2014 чинно до 06.06.2017 р. | K5: по газопроводу "Новопсков-Лоскутівка" | V5: за період з | X5: 01.03.2017 р. | Z5: по | AA5: 31.03.2017 р.
A7: Число місяця | B7: Компонентний склад, мол. % | N7: Фізико-хімічні показники газу обчислені на основі компонентного складу, 101,325 кПа | X7: Температура точки роси за вологою (Р = 3.92 МПа), °С | Y7: Температура точки роси за вуглеводнями, °С | Z7: Вміст сірководню, г/м3 | AA7: Вміст меркаптанової сірки, г/м3 | AB7: Вміст механічних домішок, г/м3
N8: Густина абсолютна, кг/м3,при 20 °С, | O8: Температура вимірювання/згоряння при 20/25°С
B9: метан, С1 | C9: етан, С2 | D9: пропан, С3 | E9: ізо-бутан, і-С4 | F9: н-бутан, н-С4 | G9: нео-пентан, нео-С5 | H9: ізо-пентан, і-С5 | I9: н-пентан, н-С5 | J9: гексани та вищі, С6+ | K9: кисень, О2 | L9: азот, N2 | M9: діоксид вуглецю, CО2 | O9: Теплота згоряння нижча | R9: Теплота згоряння вища | U9: Число Воббе вище
O10: ккал/м³ | P10: МДж/м³ | Q10: кВт⋅год/м³ | R10: ккал/м³ | S10: МДж/м³ | T10: кВт⋅год/м³ | U10: ккал/м³ | V10: МДж/м³ | W10: кВт⋅год/м³
A11: 1 | O11: =P11*238.8459 -> 8144.477998 | P11: 34.0993 | Q11: =P11/3.6 -> 9.472027778 | R11: =S11*238.8459 -> 9019.036145 | S11: 37.7609 | T11: =S11/3.6 -> 10.48913889 | U11: =V11/0.0041868 -> 11488.96532 | V11: 48.102 | W11: =V11/3.6 -> 13.36166667 | AC11: =SUM(B11:M11)+$K$42+$N$42 -> 0
A12: 2 | O12: 8144.477998 | P12: 34.0993 | Q12: 9.472027778 | R12: 9019.036145 | S12: 37.7609 | T12: 10.48913889 | U12: 11488.96532 | V12: 48.102 | W12: 13.36166667 | AC12: 0
A13: 3 | B13: 91.1432 | C13: 3.423 | D13: 1.114 | E13: 0.143 | F13: 0.2491 | G13: 0.0052 | H13: 0.0664 | I13: 0.0543 | J13: 0.114 | K13: 0.0089 | L13: 2.6564 | M13: 1.0225 | N13: 0.7398 | O13: 8180.806459 | P13: 34.2514 | Q13: 9.514277778 | R13: 9059.090603 | S13: 37.9286 | T13: 10.53572222 | U13: 11559.2099 | V13: 48.3961 | W13: 13.44336111 | AC13: 100 | AD13: =IF(AC13=100,"ОК"," ") -> ОК
A14: 4 | O14: 8180.806459 | P14: 34.2514 | Q14: 9.514277778 | R14: 9059.090603 | S14: 37.9286 | T14: 10.53572222 | U14: 11559.2099 | V14: 48.3961 | W14: 13.44336111 | AC14: 0 | AD14: =IF(AC14=100,"ОК"," ") -> 
A15: 5 | O15: 8180.806459 | P15: 34.2514 | Q15: 9.514277778 | R15: 9059.090603 | S15: 37.9286 | T15: 10.53572222 | U15: 11559.2099 | V15: 48.3961 | W15: 13.44336111 | AC15: 0
A16: 6 | O16: 8180.806459 | P16: 34.2514 | Q16: 9.514277778 | R16: 9059.090603 | S16: 37.9286 | T16: 10.53572222 | U16: 11559.2099 | V16: 48.3961 | W16: 13.44336111 | AC16: 0
A17: 7 | O17: 8180.806459 | P17: 34.2514 | Q17: 9.514277778 | R17: 9059.090603 | S17: 37.9286 | T17: 10.53572222 | U17: 11559.2099 | V17: 48.3961 | W17: 13.44336111 | AC17: 0
A18: 8 | O18: 8180.806459 | P18: 34.2514 | Q18: 9.514277778 | R18: 9059.090603 | S18: 37.9286 | T18: 10.53572222 | U18: 11559.2099 | V18: 48.3961 | W18: 13.44336111 | AC18: 0
A19: 9 | O19: 8180.806459 | P19: 34.2514 | Q19: 9.514277778 | R19: 9059.090603 | S19: 37.9286 | T19: 10.53572222 | U19: 11559.2099 | V19: 48.3961 | W19: 13.44336111 | AC19: 0
A20: 10 | O20: 8180.806459 | P20: 34.2514 | Q20: 9.514277778 | R20: 9059.090603 | S20: 37.9286 | T20: 10.53572222 | U20: 11559.2099 | V20: 48.3961 | W20: 13.44336111 | AC20: 0
A21: 11 | O21: 8180.806459 | P21: 34.2514 | Q21: 9.514277778 | R21: 9059.090603 | S21: 37.9286 | T21: 10.53572222 | U21: 11559.2099 | V21: 48.3961 | W21: 13.44336111 | AC21: 0
A22: 12 | O22: 8180.806459 | P22: 34.2514 | Q22: 9.514277778 | R22: 9059.090603 | S22: 37.9286 | T22: 10.53572222 | U22: 11559.2099 | V22: 48.3961 | W22: 13.44336111 | AC22: 0
A23: 13 | O23: 8180.806459 | P23: 34.2514 | Q23: 9.514277778 | R23: 9059.090603 | S23: 37.9286 | T23: 10.53572222 | U23: 11559.2099 | V23: 48.3961 | W23: 13.44336111 | AC23: 0
A24: 14 | B24: 91.2522 | C24: 3.3603 | D24: 1.1126 | E24: 0.1469 | F24: 0.2591 | G24: 0.0061 | H24: 0.0672 | I24: 0.0591 | J24: 0.1053 | K24: 0.0101 | L24: 2.7863 | M24: 0.8348 | N24: 0.738 | O24: 8182.669457 | P24: 34.2592 | Q24: 9.516444444 | R24: 9061.240216 | S24: 37.9376 | T24: 10.53822222 | U24: 11575.90523 | V24: 48.466 | W24: 13.46277778 | X24: -2.8 | Y24: -5.1 | Z24: 0.0004 | AA24: 0.002 | AB24: відс | AC24: 100 | AD24: ОК
A25: 15 | O25: 8182.669457 | P25: 34.2592 | Q25: 9.516444444 | R25: 9061.240216 | S25: 37.9376 | T25: 10.53822222 | U25: 11575.90523 | V25: 48.466 | W25: 13.46277778 | AC25: 0
A26: 16 | O26: 8182.669457 | P26: 34.2592 | Q26: 9.516444444 | R26: 9061.240216 | S26: 37.9376 | T26: 10.53822222 | U26: 11575.90523 | V26: 48.466 | W26: 13.46277778 | AC26: 0
A27: 17 | O27: 8182.669457 | P27: 34.2592 | Q27: 9.516444444 | R27: 9061.240216 | S27: 37.9376 | T27: 10.53822222 | U27: 11575.90523 | V27: 48.466 | W27: 13.46277778 | AC27: 0
A28: 18 | O28: 8182.669457 | P28: 34.2592 | Q28: 9.516444444 | R28: 9061.240216 | S28: 37.9376 | T28: 10.53822222 | U28: 11575.90523 | V28: 48.466 | W28: 13.46277778 | AC28: 0
A29: 19 | O29: 8182.669457 | P29: 34.2592 | Q29: 9.516444444 | R29: 9061.240216 | S29: 37.9376 | T29: 10.53822222 | U29: 11575.90523 | V29: 48.466 | W29: 13.46277778 | AC29: 0
A30: 20 | O30: 8182.669457 | P30: 34.2592 | Q30: 9.516444444 | R30: 9061.240216 | S30: 37.9376 | T30: 10.53822222 | U30: 11575.90523 | V30: 48.466 | W30: 13.46277778 | AC30: 0 | AD30: =IF(AC30=100,"ОК"," ") -> 
A31: 21 | O31: 8182.669457 | P31: 34.2592 | Q31: 9.516444444 | R31: 9061.240216 | S31: 37.9376 | T31: 10.53822222 | U31: 11575.90523 | V31: 48.466 | W31: 13.46277778 | AC31: 0
A32: 22 | O32: 8182.669457 | P32: 34.2592 | Q32: 9.516444444 | R32: 9061.240216 | S32: 37.9376 | T32: 10.53822222 | U32: 11575.90523 | V32: 48.466 | W32: 13.46277778 | AC32: 0
A33: 23 | O33: 8182.669457 | P33: 34.2592 | Q33: 9.516444444 | R33: 9061.240216 | S33: 37.9376 | T33: 10.53822222 | U33: 11575.90523 | V33: 48.466 | W33: 13.46277778 | AC33: 0 | AD33: =IF(AC33=100,"ОК"," ") -> 
A34: 24 | O34: 8182.669457 | P34: 34.2592 | Q34: 9.516444444 | R34: 9061.240216 | S34: 37.9376 | T34: 10.53822222 | U34: 11575.90523 | V34: 48.466 | W34: 13.46277778 | AC34: 0
A35: 25 | O35: 8182.669457 | P35: 34.2592 | Q35: 9.516444444 | R35: 9061.240216 | S35: 37.9376 | T35: 10.53822222 | U35: 11575.90523 | V35: 48.466 | W35: 13.46277778 | AC35: 0
A36: 26 | O36: 8182.669457 | P36: 34.2592 | Q36: 9.516444444 | R36: 9061.240216 | S36: 37.9376 | T36: 10.53822222 | U36: 11575.90523 | V36: 48.466 | W36: 13.46277778 | AC36: 0
A37: 27 | O37: 8182.669457 | P37: 34.2592 | Q37: 9.516444444 | R37: 9061.240216 | S37: 37.9376 | T37: 10.53822222 | U37: 11575.90523 | V37: 48.466 | W37: 13.46277778 | AC37: 0
A38: 28 | O38: 8182.669457 | P38: 34.2592 | Q38: 9.516444444 | R38: 9061.240216 | S38: 37.9376 | T38: 10.53822222 | U38: 11575.90523 | V38: 48.466 | W38: 13.46277778 | AC38: 0
A39: 29 | O39: 8182.669457 | P39: 34.2592 | Q39: 9.516444444 | R39: 9061.240216 | S39: 37.9376 | T39: 10.53822222 | U39: 11575.90523 | V39: 48.466 | W39: 13.46277778 | AC39: 0
A40: 30 | O40: 8182.669457 | P40: 34.2592 | Q40: 9.516444444 | R40: 9061.240216 | S40: 37.9376 | T40: 10.53822222 | U40: 11575.90523 | V40: 48.466 | W40: 13.46277778 | AC40: 0
A41: 31 | O41: 8182.669457 | P41: 34.2592 | Q41: 9.516444444 | R41: 9061.240216 | S41: 37.9376 | T41: 10.53822222 | U41: 11575.90523 | V41: 48.466 | W41: 13.46277778 | AC41: 0
A42: Рівень одоризації відповідає чинним нормативним документам | O42: =SUMPRODUCT(O11:O41,' розрахунок'!E7:E37)/' розрахунок'!E38 -> 8179.173267 | P42: =SUMPRODUCT(P11:P41,' розрахунок'!E7:E37)/' розрахунок'!E38 -> 34.24456215 | Q42: =SUMPRODUCT(Q11:Q41,' розрахунок'!E7:E37)/' розрахунок'!E38 -> 9.512378375 | R42: =SUMPRODUCT(R11:R41,' розрахунок'!E7:E37)/' розрахунок'!E38 -> 9057.341576 | S42: =SUMPRODUCT(S11:S41,' розрахунок'!E7:E37)/' розрахунок'!E38 -> 37.92127718 | T42: =SUMPRODUCT(T11:T41,' розрахунок'!E7:E37)/' розрахунок'!E38 -> 10.5336881
H43: Середньозважене значення теплоти згоряння:
B46: Начальник управління Сєвєродонецького ЛВУМГ Головко Ю.О.
C47: Підрозділу підприємства, якому підпорядкована лабораторія | O47: прізвище | R47: підпис | V47: дата
B48: Інженер ІІ кат.вимірювальної хіміко-аналітичної лабораторії Єрьоменко М.О.
C49: Лабораторія, де здійснювалось вимірювання газу | O49: прізвище | R49: підпис | V49: дата
B50: Начальник служби метрології Ісаєв В.С.
C51: Підрозділу, відповідального за облік газу за маршрутом | O51: прізвище | R51: підпис | V51: дата

Sheet розрахунок (hidden)
A2: Додаток до Паспорту фізико-хімічних показників природного газу по маршруту № 634
A4: Число місяця | B4: Теплота згоряння вища, МДж/м3 | C4: Луганська область | E4: Загальний обсяг газу, м3
C5: Обсяг газу переданого за добу, м3
C6: ГРС НПЗ | D6: ГРС НПС
A7: 1 | B7: 37.7609 | C7: 0 | D7: 484.16 | E7: =D7+C7 -> 484.16
A8: 2 | B8: 37.7609 | C8: 0 | D8: 337.91 | E8: 337.91
A9: 3 | B9: 37.9286 | C9: 0 | D9: 352.24 | E9: 352.24
A10: 4 | B10: 37.9286 | C10: 0 | D10: 489.2 | E10: 489.2
A11: 5 | B11: 37.9286 | C11: 0 | D11: 343.54 | E11: 343.54
A12: 6 | B12: 37.9286 | C12: 0 | D12: 263.6 | E12: 263.6
A13: 7 | B13: 37.9286 | C13: 0 | D13: 418.93 | E13: 418.93
A14: 8 | B14: 37.9286 | C14: 0 | D14: 411.41 | E14: 411.41
A15: 9 | B15: 37.9286 | C15: 0 | D15: 335.77 | E15: 335.77
A16: 10 | B16: 37.9286 | C16: 0 | D16: 411.98 | E16: 411.98
A17: 11 | B17: 37.9286 | C17: 0 | D17: 462.9 | E17: 462.9
A18: 12 | B18: 37.9286 | C18: 0 | D18: 471.82 | E18: 471.82
A19: 13 | B19: 37.9286 | C19: 0 | D19: 408.88 | E19: 408.88
A20: 14 | B20: 37.9376 | C20: 0 | D20: 389.25 | E20: 389.25
A21: 15 | B21: 37.9376 | C21: 0 | D21: 449.48 | E21: 449.48
A22: 16 | B22: 37.9376 | C22: 0 | D22: 366.82 | E22: 366.82
A23: 17 | B23: 37.9376 | C23: 0 | D23: 253.94 | E23: 253.94
A24: 18 | B24: 37.9376 | C24: 0 | D24: 274.6 | E24: 274.6
A25: 19 | B25: 37.9376 | C25: 0 | D25: 370.32 | E25: 370.32
A26: 20 | B26: 37.9376 | C26: 0 | D26: 447.81 | E26: 447.81
A27: 21 | B27: 37.9376 | C27: 0 | D27: 268.11 | E27: 268.11
A28: 22 | B28: 37.9376 | C28: 0 | D28: 392.13 | E28: 392.13
A29: 23 | B29: 37.9376 | C29: 0 | D29: 190.96 | E29: 190.96
A30: 24 | B30: 37.9376 | C30: 0 | D30: 235.89 | E30: 235.89
A31: 25 | B31: 37.9376 | C31: 0 | D31: 216.75 | E31: 216.75
A32: 26 | B32: 37.9376 | C32: 0 | D32: 181.98 | E32: 181.98
A33: 27 | B33: 37.9376 | C33: 0 | D33: 513.63 | E33: 513.63
A34: 28 | B34: 37.9376 | C34: 0 | D34: 446.13 | E34: 446.13
A35: 29 | B35: 37.9376 | C35: 0 | D35: 277.36 | E35: 277.36
A36: 30 | B36: 37.9376 | C36: 0 | D36: 435.47 | E36: 435.47
A37: 31 | B37: 37.9376 | C37: 0 | D37: 405.87 | E37: 405.87
A38: Загальний обсяг газу, м3 | C38: =SUM(C7:C37) -> 0 | D38: =SUM(D7:D37) -> 11308.84 | E38: =SUM(E7:E37) -> 11308.84
A39: Енергія, МДж | C39: =SUMPRODUCT(B7:B37,C7:C37) -> 0 | D39: =SUMPRODUCT(B7:B37,D7:D37) -> 428845.6562 | E39: =SUMPRODUCT(B7:B37,E7:E37) -> 428845.6562
A40: Теплота згоряння (середньозважене значення за місяць), МДж/м³ | C40: =C39/C38 ->  | D40: =D39/D38 -> 37.92127718 | E40: =E39/E38 -> 37.92127718
A41: Теплота згоряння (середньозважене значення за місяць), ккал/м³ | C41: =C40*238.8459 ->  | D41: =D40*238.8459 -> 9057.341576 | E41: =E40*238.8459 -> 9057.341576
A42: Теплота згоряння (середньозважене значення за місяць), кВт*год./м³ | C42: =C40/3.6 ->  | D42: =D40/3.6 -> 10.5336881 | E42: =E40/3.6 -> 10.5336881

Sheet додаток
A2: Додаток до Паспорту фізико-хімічних показників природного газу №634
A4: Область | B4: ГРС, прямий споживач | C4: Cередньозважене значення вищої теплоти згоряння
C5: МДж/м³ | D5: ккал/м³ | E5: кВт*год./м³
A6: Луганська область | B6: ГРС НПС | C6: 37.92 | D6: 9057 | E6: 10.53
A7: Середньозважене значення вищої теплоти згоряння по маршруту № 634 | C7: 37.92 | D7: 9057 | E7: 10.53
A11: Начальник управління Сєвєродонецького ЛВУМГ Головко Ю.О.
A12: Підрозділу підприємства, якому підпорядкована лабораторія | D12: прізвище | E12: підпис | F12: дата
A13: Інженер ІІ кат.вимірювальної хіміко-аналітичної лабораторії Єрьоменко М.О.
A14: Лабораторія, де здійснювалось вимірювання газу | D14: прізвище | E14: підпис | F14: дата
A15: Начальник служби метрології Ісаєв В.С.
A16: Підрозділу, відповідального за облік газу за маршрутом | D16: прізвище | E16: підпис | F16: дата

Sheet variablesList (hidden)
A1: 3 | B1: x:\gaysin | C1: 10, 11, 24, 25, 127, 128, 132, 180, 207, 215 | D1: x:\
B2: x:\Illinci
B3: x:\Talne
